bitfinex-derivatives/quotes_BTCF0:USTF0_20250212
["timestamp","ask_amount","ask_price","bid_price","bid_amount"]
[1739393805838,0.2071052,97034.0,97033.0,0.22221517]
[1739393806830,0.001,97034.0,97033.0,0.58301467]
[1739393807338,0.00154631,97037.0,97036.0,0.2060991]
[1739393807534,0.00154631,97037.0,97036.0,0.22220827]
[1739393807738,0.00154631,97037.0,97036.0,1.72220827]
[1739393808436,0.00154631,97037.0,97036.0,1.72320827]
[1739393808835,0.00154631,97037.0,97036.0,0.2070991]
[1739393809027,0.00154631,97037.0,97036.0,0.22320673]
[1739393809233,0.20764331,97037.0,97036.0,0.22320673]
[1739393810237,0.00154631,97037.0,97036.0,0.22320673]
[1739393812743,0.2060949,97038.0,97037.0,0.2060952]
[1739393812944,0.2060949,97038.0,97037.0,0.01610763]
[1739393813141,0.206097,97037.0,97036.0,0.001]
[1739393814542,0.001,97037.0,97026.0,0.00015456]
[1739393814842,0.2061183,97029.0,97028.0,0.2061148]
[1739393815044,0.2061183,97029.0,97028.0,0.22222453]
[1739393815338,0.2061049,97034.0,97033.0,0.2061013]
[1739393816346,0.2061049,97034.0,97033.0,0.22221051]
[1739393817936,0.2081049,97034.0,97033.0,0.22221051]
[1739393818138,0.2081049,97034.0,97033.0,0.22221069]
[1739393819040,0.2061049,97034.0,97033.0,0.22221069]
[1739393819339,0.2061049,97034.0,97033.0,0.22421069]
[1739393819548,0.5669049,97034.0,97033.0,0.01810939]
[1739393819739,0.6012049,97034.0,97033.0,0.01610939]
[1739393820241,0.2061182,97027.0,97026.0,0.00015456]
[1739393820441,0.2061182,97027.0,97026.0,0.01626549]
[1739393820647,0.2061182,97027.0,97026.0,0.00015456]
[1739393821834,0.3608,97033.0,97026.0,0.00015456]
[1739393822146,0.001,97027.0,97026.0,0.20627496]
[1739393822346,0.001,97027.0,97026.0,0.22238561]
[1739393822638,0.5669065,97033.0,97032.0,0.2061076]
[1739393822840,0.5669065,97033.0,97032.0,0.22221825]
[1739393823739,0.5669065,97033.0,97032.0,0.01611065]
[1739393823942,0.5669056,97033.0,97032.0,0.01611117]
[1739393824242,0.2061183,97027.0,97026.0,0.00115456]
[1739393824443,0.2061183,97027.0,97026.0,0.01726539]
[1739393824843,0.2061183,97027.0,97026.0,0.22238579]
[1739393825439,0.2101183,97027.0,97026.0,0.22238579]
[1739393825838,0.2061183,97027.0,97026.0,0.22238579]
[1739393826040,0.2101183,97027.0,97026.0,0.22238579]
[1739393826442,0.2061183,97027.0,97026.0,0.22238579]
[1739393826744,0.2081183,97027.0,97026.0,0.22238579]
[1739393828046,0.206109,97032.0,97031.0,0.206106]
[1739393828947,0.206109,97032.0,97031.0,0.01611022]
[1739393829452,0.2061183,97027.0,97026.0,0.00015456]
[1739393829640,0.2061183,97027.0,97026.0,0.01626577]
[1739393830041,0.2061183,97027.0,97026.0,0.00015456]
[1739393830747,0.2061183,97027.0,97026.0,0.20627496]
[1739393830942,0.003,97032.0,97026.0,0.00015456]
[1739393831148,0.2091091,97032.0,97031.0,0.2061098]
[1739393831548,0.2061091,97032.0,97031.0,0.2061098]
[1739393832150,0.2071091,97032.0,97031.0,0.2061098]
[1739393832454,0.2071091,97032.0,97031.0,0.2222192]
[1739393832655,0.2061091,97032.0,97031.0,0.2222192]
[1739393832852,0.2081091,97032.0,97031.0,0.2222192]
[1739393833065,0.2081091,97032.0,97031.0,0.2061098]
[1739393833357,0.2081091,97032.0,97031.0,0.22221917]
[1739393833755,0.002,97032.0,97031.0,0.22221893]
[1739393834758,0.00015456,97045.0,97044.0,0.2060822]
[1739393834943,0.00015456,97045.0,97044.0,0.22218953]
[1739393835961,0.00615456,97045.0,97044.0,0.01710733]
[1739393836263,0.06985456,97045.0,97044.0,0.01710733]
[1739393837259,0.43065456,97045.0,97044.0,0.01710733]
[1739393837659,0.43065456,97045.0,97044.0,0.0171085]
[1739393839564,0.63673466,97045.0,97044.0,0.0171085]
[1739393841466,0.63673466,97045.0,97044.0,0.001]
[1739393842769,0.63673466,97045.0,97044.0,0.0171091]
[1739393843271,0.63673466,97045.0,97044.0,0.001]
[1739393843470,0.63673466,97045.0,97044.0,0.01710901]
[1739393843968,0.63673466,97045.0,97044.0,0.001]
[1739393844866,0.43065456,97045.0,97043.0,0.2060831]
[1739393845078,0.2060822,97044.0,97043.0,0.2060831]
[1739393845571,0.2060822,97044.0,97043.0,0.2221914]
[1739393846772,0.00415456,97045.0,97044.0,0.2060822]
[1739393847069,0.00015456,97045.0,97044.0,0.2221905]
[1739393847271,0.00515456,97045.0,97044.0,0.5829905]
[1739393847477,0.2060429,97063.0,97044.0,0.3608]
[1739393847674,0.2060429,97063.0,97045.0,0.07247695]
[1739393847860,0.2060429,97063.0,97050.0,0.12229457]
[1739393848058,0.2060429,97063.0,97059.0,0.2060487]
[1739393848672,0.2180725,97063.0,97059.0,0.2060487]
[1739393848867,0.0140296,97063.0,97059.0,0.2060487]
[1739393849173,0.002,97063.0,97059.0,0.2060487]
[1739393850269,0.2060644,97053.0,97051.0,0.00015456]
[1739393850465,0.423,97052.0,97051.0,0.00015456]
[1739393850773,0.4547,97052.0,97051.0,0.00015456]
[1739393850971,0.3608,97052.0,97051.0,0.00015456]
[1739393851775,0.37275518,97052.0,97051.0,0.00015456]
[1739393853576,0.57882038,97052.0,97051.0,0.00015456]
[1739393854075,0.58182038,97052.0,97051.0,0.00015456]
[1739393855660,0.58182038,97052.0,97051.0,0.20622196]
[1739393857168,0.57882038,97052.0,97051.0,0.20622196]
[1739393857370,0.58182038,97052.0,97051.0,0.20622196]
[1739393857766,0.57882038,97052.0,97051.0,0.20622196]
[1739393857975,0.58182038,97052.0,97051.0,0.20622196]
[1739393858777,0.22102038,97052.0,97051.0,0.2223286]
[1739393860083,0.01495518,97052.0,97051.0,0.2223286]
[1739393860375,0.2060489,97060.0,97051.0,0.3770612]
[1739393860574,0.2060371,97066.0,97065.0,0.2060358]
[1739393860973,0.00154575,97068.0,97052.0,0.0639]
[1739393861177,0.2060561,97057.0,97056.0,0.2060541]
[1739393861374,0.12229457,97062.0,97056.0,0.01610504]
[1739393861673,0.2060425,97065.0,97064.0,0.2060379]
[1739393861873,0.2060425,97065.0,97064.0,0.22214288]
[1739393862379,0.2060425,97065.0,97064.0,0.22214305]
[1739393862775,0.2060425,97065.0,97064.0,0.40732037]
[1739393863083,0.2060425,97065.0,97064.0,0.18517732]
[1739393864282,0.2090425,97065.0,97064.0,0.18617732]
[1739393867886,0.2090425,97065.0,97064.0,0.001]
[1739393870283,0.206044,97062.0,97061.0,0.18517732]
[1739393870484,0.566844,97062.0,97061.0,0.18517732]
[1739393871290,0.2060546,97057.0,97056.0,0.18517732]
[1739393872279,0.2090546,97057.0,97056.0,0.18517732]
[1739393873786,0.2060546,97057.0,97056.0,0.18517732]
[1739393873990,0.2110546,97057.0,97056.0,0.18517732]
[1739393874695,0.2060567,97056.0,97055.0,0.18517732]
[1739393875703,0.2060567,97056.0,97055.0,0.39123622]
[1739393877194,0.2100567,97056.0,97055.0,0.39123622]
[1739393877698,0.21789486,97056.0,97055.0,0.18517732]
[1739393877895,0.22189486,97056.0,97055.0,0.18517732]
[1739393878496,0.2060652,97052.0,97051.0,0.24690682]
[1739393879604,0.2060652,97052.0,97051.0,0.45297422]
[1739393880702,0.22189786,97056.0,97055.0,0.2060589]
[1739393880900,0.2100597,97056.0,97055.0,0.2060589]
[1739393881107,0.004,97056.0,97055.0,0.2060589]
[1739393881403,0.2060512,97059.0,97058.0,0.2060482]
[1739393882098,0.2059917,97087.0,97059.0,0.0515124]
[1739393882300,0.3608,97094.0,97087.0,0.2059909]
[1739393882497,0.38980713,97088.0,97087.0,0.2059909]
[1739393883191,0.18381833,97088.0,97087.0,0.2059909]
[1739393883400,0.19536588,97088.0,97087.0,0.2059909]
[1739393883901,0.40135468,97088.0,97087.0,0.2059909]
[1739393884292,0.40135468,97088.0,97087.0,0.2069909]
[1739393884293,0.40535468,97088.0,97087.0,0.2069909]
[1739393885906,0.01554755,97088.0,97087.0,0.2069909]
[1739393886304,0.004,97088.0,97087.0,0.2069909]
[1739393890199,0.004,97088.0,97087.0,0.001]
[1739393890200,0.3648,97088.0,97087.0,0.001]
[1739393890395,0.43532,97088.0,97078.0,0.00015456]
[1739393890601,0.20601,97078.0,97077.0,0.24659013]
[1739393892096,0.2178975,97078.0,97077.0,0.24659013]
[1739393892697,0.0118875,97078.0,97068.0,0.00015456]
[1739393892893,0.2060291,97069.0,97068.0,0.00015456]
[1739393894407,0.2090291,97069.0,97068.0,0.00015456]
[1739393894999,0.2130291,97069.0,97068.0,0.00115456]
[1739393895705,0.2447291,97069.0,97068.0,0.00115456]
[1739393896507,0.2447291,97069.0,97068.0,0.00015456]
[1739393896700,0.2447291,97069.0,97068.0,0.00115456]
[1739393897102,0.2377291,97069.0,97068.0,0.00015456]
[1739393897407,0.2447291,97069.0,97068.0,0.00015456]
[1739393898305,0.25619032,97069.0,97068.0,0.00015456]
[1739393898507,0.2060631,97053.0,97052.0,0.2060647]
[1739393900006,0.36176001,97057.0,97056.0,0.2060567]
[1739393900312,0.2060546,97057.0,97056.0,0.2060567]
[1739393902008,0.2060715,97053.0,97052.0,0.2060635]
[1739393903413,0.49590612,97062.0,97056.0,0.2060567]
[1739393903615,0.49502611,97062.0,97056.0,0.2060567]
[1739393904618,0.2060546,97057.0,97056.0,0.2060567]
[1739393906513,0.2060724,97053.0,97052.0,0.2060648]
[1739393908209,0.2060724,97053.0,97052.0,0.2080648]
[1739393909205,0.2060514,97061.0,97060.0,0.2060459]
[1739393909407,0.00015456,97062.0,97061.0,0.2060459]
[1739393911226,0.00415456,97062.0,97061.0,0.2060459]
[1739393912541,0.21019836,97062.0,97061.0,0.2060459]
[1739393914630,0.20619836,97062.0,97061.0,0.2060459]
[1739393916123,0.20819836,97062.0,97061.0,0.2060459]
[1739393916716,0.206065,97053.0,97052.0,0.2060648]
[1739393917121,0.2060653,97052.0,97051.0,0.2060583]
[1739393917323,0.2060561,97057.0,97056.0,0.2060476]
[1739393918131,0.20619946,97062.0,97061.0,0.2060459]
[1739393918429,0.00015456,97062.0,97061.0,0.2060459]
[1739393920034,0.00015456,97062.0,97061.0,0.2070459]
[1739393921036,0.00015456,97062.0,97061.0,0.2060459]
[1739393921232,0.00015456,97062.0,97061.0,0.2070459]
[1739393922137,0.20619836,97062.0,97061.0,0.2070459]
[1739393922835,0.20619836,97062.0,97054.0,0.24662415]
[1739393922836,0.2060587,97059.0,97058.0,0.2060519]
[1739393923440,0.2060587,97055.0,97054.0,0.45268485]
[1739393923629,0.2060587,97055.0,97054.0,0.2060607]
[1739393925231,0.00015456,97062.0,97061.0,0.2060459]
[1739393925631,0.20619836,97062.0,97061.0,0.2060459]
[1739393926732,0.00015456,97062.0,97061.0,0.2060459]
[1739393927131,0.00015456,97062.0,97061.0,0.45312996]
[1739393927335,0.00015456,97062.0,97061.0,0.45412996]
[1739393928835,0.00015456,97062.0,97061.0,0.45512996]
[1739393929739,0.20619876,97062.0,97061.0,0.45512996]
[1739393929940,0.00015456,97062.0,97061.0,0.45412996]
[1739393930832,0.3608,97109.0,97085.0,0.2059954]
[1739393931134,0.01138298,97093.0,97085.0,0.5667954]
[1739393931641,0.2059722,97096.0,97085.0,0.5667954]
[1739393931932,0.00015456,97095.0,97085.0,0.5667954]
[1739393933136,0.00554578,97086.0,97085.0,0.5667954]
[1739393934429,0.00554578,97086.0,97085.0,0.2059954]
[1739393938575,0.1,97100.0,97079.0,0.3608]
[1739393938888,0.1,97100.0,97099.0,0.2059657]
[1739393939073,0.00088001,97129.0,97098.0,0.0514917]
[1739393939257,0.2058882,97136.0,97132.0,0.2058957]
[1739393939752,0.0321,97137.0,97132.0,0.2058957]
[1739393940050,0.19520648,97133.0,97132.0,0.2058957]
[1739393940247,0.19520648,97133.0,97125.0,0.3608]
[1739393940440,0.2059127,97124.0,97123.0,0.00015448]
[1739393940949,0.2059025,97129.0,97128.0,0.2059042]
[1739393941253,0.2059025,97129.0,97128.0,0.5667042]
[1739393941452,0.20220648,97133.0,97124.0,0.2059121]
[1739393941649,0.20220648,97133.0,97127.0,0.3608]
[1739393941849,0.19081833,97133.0,97131.0,0.2058971]
[1739393942641,0.00154493,97153.0,97131.0,0.3608]
[1739393942844,0.01297911,97153.0,97141.0,0.5666766]
[1739393943046,0.00154493,97153.0,97141.0,0.5666766]
[1739393943955,1e-08,97142.0,97141.0,0.5666766]
[1739393944454,0.00154493,97153.0,97141.0,0.5666766]
[1739393944652,0.002,97142.0,97141.0,0.001]
[1739393945151,0.002,97142.0,97141.0,0.2068766]
[1739393946455,0.2078745,97142.0,97141.0,0.001]
[1739393946665,0.3608,97142.0,97141.0,0.001]
[1739393947360,0.3648,97142.0,97141.0,0.001]
[1739393947557,0.5706745,97142.0,97141.0,0.001]
[1739393947751,0.2098745,97142.0,97141.0,0.001]
[1739393948255,0.3648,97142.0,97117.0,0.3608]
[1739393948459,0.2059127,97124.0,97109.0,0.2059443]
[1739393948956,0.2059127,97124.0,97110.0,0.12229457]
[1739393949156,0.2059127,97124.0,97118.0,0.205925]
[1739393949956,0.2079127,97124.0,97118.0,0.205925]
[1739393950665,0.2079127,97124.0,97105.0,0.3608]
[1739393951361,0.2059529,97105.0,97104.0,0.24784881]
[1739393951863,0.2059529,97105.0,97104.0,0.00154469]
[1739393952160,0.2059442,97110.0,97108.0,0.205945]
[1739393952365,0.2059442,97110.0,97104.0,0.36234469]
[1739393952366,0.2059529,97106.0,97104.0,0.00154469]
[1739393952560,0.2059529,97106.0,97104.0,0.00254469]
[1739393952861,0.2059384,97112.0,97107.0,0.205947]
[1739393953063,0.2059384,97112.0,97105.0,0.3608]
[1739393953256,0.3608,97117.0,97113.0,0.2059357]
[1739393953456,0.2059298,97116.0,97105.0,0.3608]
[1739393953762,0.3608,97117.0,97116.0,0.2059296]
[1739393954264,0.2059392,97112.0,97110.0,0.2059415]
[1739393955388,0.2059508,97106.0,97105.0,0.3618]
[1739393955687,0.0321,97116.0,97105.0,0.3618]
[1739393956266,0.2059481,97108.0,97106.0,0.2059498]
[1739393956566,0.0321,97116.0,97105.0,0.3608]
[1739393956768,0.3917,97129.0,97105.0,0.3608]
[1739393956964,0.12229457,97120.0,97114.0,0.2059333]
[1739393957360,0.12229457,97120.0,97105.0,0.3608]
[1739393957571,0.2059464,97109.0,97106.0,0.003]
[1739393957768,0.2059464,97109.0,97107.0,0.2059487]
[1739393958367,0.12229457,97120.0,97106.0,0.003]
[1739393958559,0.2059474,97108.0,97107.0,0.2059481]
[1739393959063,0.2059338,97115.0,97114.0,0.2059314]
[1739393959258,0.12229457,97120.0,97107.0,0.2059466]
[1739393959663,0.2059384,97112.0,97110.0,0.2059419]
[1739393960062,0.2059262,97118.0,97107.0,0.002]
[1739393960264,0.2059305,97116.0,97105.0,0.3608]
[1739393960465,0.2059363,97113.0,97105.0,0.3608]
[1739393960662,0.12229457,97120.0,97105.0,0.3608]
[1739393960868,0.12229457,97120.0,97116.0,0.2059283]
[1739393960869,0.2059266,97118.0,97116.0,0.2059283]
[1739393961669,0.0514712,97138.0,97110.0,0.001]
[1739393961670,0.48309457,97140.0,97118.0,0.2059254]
[1739393961980,0.2059194,97121.0,97118.0,0.2059254]
[1739393962265,0.2059073,97127.0,97118.0,0.2059254]
[1739393962573,0.2058848,97138.0,97118.0,0.2059254]
[1739393962768,0.12229457,97150.0,97141.0,0.2058751]
[1739393962969,0.2058873,97136.0,97135.0,0.2058883]
[1739393963269,0.3608,97143.0,97125.0,0.3608]
[1739393963475,0.2059173,97122.0,97119.0,0.205922]
[1739393963865,0.2059173,97122.0,97120.0,0.2059195]
[1739393964070,0.3608,97126.0,97111.0,0.06255448]
[1739393964270,0.3608,97126.0,97124.0,0.2059107]
[1739393964467,0.2059103,97126.0,97125.0,0.2059081]
[1739393965267,0.2058992,97131.0,97130.0,0.2058963]
[1739393965774,0.01133518,97140.0,97130.0,0.3608]
[1739393966072,0.13362975,97140.0,97130.0,0.3608]
[1739393966269,0.13362975,97140.0,97128.0,0.2059037]
[1739393966469,0.12229457,97138.0,97122.0,0.0321]
[1739393966771,0.0302,97139.0,97122.0,0.0321]
[1739393966976,0.3608,97141.0,97137.0,0.2058847]
[1739393966977,0.2058843,97138.0,97137.0,0.2058847]
[1739393967367,0.3608,97141.0,97140.0,0.2058787]
[1739393967670,0.3608,97166.0,97138.0,0.3608]
[1739393967869,0.2058355,97161.0,97152.0,0.2058533]
[1739393968375,0.3608,97166.0,97152.0,0.2058533]
[1739393968765,0.2058307,97163.0,97152.0,0.2058533]
[1739393969167,0.2058328,97162.0,97152.0,0.2058533]
[1739393969367,0.3608,97158.0,97152.0,0.2058533]
[1739393969674,0.5666417,97158.0,97152.0,0.2058533]
[1739393969872,0.5666417,97158.0,97152.0,0.2068533]
[1739393969873,0.56724171,97158.0,97152.0,0.2068533]
[1739393970267,0.2058501,97154.0,97152.0,0.001]
[1739393970871,0.2058936,97133.0,97131.0,0.00015448]
[1739393971972,0.12229457,97150.0,97131.0,0.00015448]
[1739393972166,0.2058635,97148.0,97137.0,0.2058821]
[1739393972373,0.3608,97146.0,97137.0,0.2058849]
[1739393972676,0.2058945,97133.0,97131.0,0.00015448]
[1739393973264,0.0303,97149.0,97131.0,0.00015448]
[1739393973477,0.2058744,97143.0,97142.0,0.2058713]
[1739393973975,0.2058744,97143.0,97132.0,0.0325]
[1739393973976,0.0303,97149.0,97148.0,0.2058618]
[1739393974174,0.2371584,97150.0,97148.0,0.2058618]
[1739393974878,0.0313,97150.0,97144.0,0.3608]
[1739393975076,0.2058681,97145.0,97144.0,0.2058674]
[1739393975381,0.0313,97150.0,97135.0,1.5]
[1739393975569,0.2371576,97150.0,97148.0,0.20586]
[1739393976378,0.0313,97150.0,97134.0,0.3608]
[1739393976574,0.2058699,97145.0,97143.0,0.2058713]
[1739393978279,0.2058812,97139.0,97134.0,0.3608]
[1739393978476,0.32816487,97144.0,97143.0,0.001]
[1739393978780,0.5666703,97144.0,97143.0,0.001]
[1739393979980,0.2058957,97132.0,97131.0,0.00015448]
[1739393980181,0.5666957,97132.0,97131.0,0.00015448]
[1739393981281,0.2059381,97112.0,97111.0,0.30753899]
[1739393981476,0.9275381,97112.0,97111.0,0.11597021]
[1739393981676,0.9275381,97112.0,97111.0,0.10281573]
[1739393981985,0.9275381,97112.0,97111.0,0.05291573]
[1739393982377,0.9275381,97112.0,97111.0,3e-08]
[1739393982780,0.2059572,97103.0,97102.0,0.36853602]
[1739393983088,0.5657572,97103.0,97102.0,0.36853602]
[1739393983485,0.2049572,97103.0,97102.0,0.0001544]
[1739393983677,0.2059451,97109.0,97102.0,0.0001544]
[1739393983983,0.48309457,97112.0,97102.0,0.0001544]
[1739393984190,0.2059558,97104.0,97102.0,0.0001544]
[1739393984489,0.3608,97103.0,97102.0,0.0001544]
[1739393985983,0.3608,97103.0,97102.0,0.2061137]
[1739393986175,0.2059558,97104.0,97102.0,0.2061137]
[1739393986375,0.3628,97112.0,97102.0,0.0001544]
[1739393986583,0.3628,97112.0,97111.0,0.2059402]
[1739393986785,0.3608,97112.0,97111.0,0.2059402]
[1739393987088,0.2059341,97114.0,97113.0,0.205936]
[1739393988683,0.36095419,97121.0,97107.0,0.2059478]
[1739393988883,0.2059436,97110.0,97102.0,0.0041544]
[1739393989183,0.2059436,97110.0,97108.0,0.2059452]
[1739393989582,0.00015419,97121.0,97108.0,0.2059452]
[1739393989583,0.00015419,97121.0,97108.0,0.3608]
[1739393989782,0.2059398,97112.0,97111.0,0.2059395]
[1739393990187,0.00015419,97121.0,97102.0,0.0011544]
[1739393990383,0.2059294,97117.0,97116.0,0.2059278]
[1739393990684,0.00015419,97121.0,97109.0,0.2059424]
[1739393990886,0.3608,97116.0,97109.0,0.2059424]
[1739393991286,0.3608,97116.0,97115.0,0.2059317]
[1739393991594,0.205943,97111.0,97110.0,0.2059403]
[1739393992891,0.206943,97111.0,97110.0,0.2059403]
[1739393993091,0.001,97111.0,97102.0,0.0001544]
[1739393993289,0.2059537,97105.0,97104.0,0.2059545]
[1739393993588,0.2059572,97103.0,97102.0,0.0001544]
[1739393994295,0.2059572,97103.0,97102.0,0.2061137]
[1739393994778,0.2059572,97103.0,97102.0,0.0001544]
[1739393995492,0.3608,97103.0,97067.0,0.36881177]
[1739393995683,0.12229457,97077.0,97068.0,0.0331]
[1739393995992,0.2060284,97070.0,97068.0,0.0331]
[1739393996393,0.2050284,97070.0,97068.0,0.0331]
[1739393996590,0.3608,97069.0,97068.0,0.0331]
[1739393996893,0.2060314,97068.0,97067.0,0.36881177]
[1739393997080,0.2010314,97068.0,97067.0,0.36881177]
[1739393997884,0.2010314,97068.0,97059.0,0.00015448]
[1739393997885,0.2060401,97064.0,97059.0,0.20620458]
[1739393998090,0.48309457,97070.0,97059.0,0.20620458]
[1739393998285,0.12229457,97070.0,97059.0,0.20620458]
[1739393998490,0.40412679,97076.0,97059.0,0.00015448]
[1739393998491,0.39310001,97076.0,97059.0,0.00015448]
[1739393998792,0.2100307,97069.0,97067.0,0.2060328]
[1739393998991,0.004,97069.0,97059.0,0.00015448]
[1739393999189,0.3608,97069.0,97059.0,0.00515448]
[1739393999392,0.2060484,97061.0,97060.0,0.2060472]
[1739393999596,0.001,97070.0,97060.0,0.3608]
[1739393999791,0.001,97070.0,97069.0,0.2060293]
[1739393999996,0.3608,97078.0,97076.0,0.2060135]
[1739394000184,0.3608,97078.0,97077.0,0.0319]
[1739394000491,0.2059724,97096.0,97094.0,0.2059748]
[1739394000700,0.3608,97109.0,97097.0,0.2059687]
[1739394000890,0.2059857,97090.0,97077.0,0.3927]
[1739394001090,0.12229457,97090.0,97077.0,0.2379116]
[1739394001287,0.2060084,97079.0,97077.0,0.0319]
[1739394001984,0.2060166,97075.0,97074.0,0.00015448]
[1739394002993,0.2100166,97075.0,97074.0,0.00015448]
[1739394003296,0.206059,97055.0,97054.0,0.033]
[1739394003998,0.206059,97055.0,97054.0,0.2390611]
[1739394004194,0.2060499,97060.0,97054.0,0.033]
[1739394004399,0.2060499,97060.0,97059.0,0.2060487]
[1739394004598,0.00015448,97064.0,97062.0,0.2060436]
[1739394004900,0.00015448,97064.0,97063.0,0.0635]
[1739394005900,0.00415448,97064.0,97063.0,0.0635]
[1739394006492,0.00015448,97064.0,97063.0,0.0675]
[1739394007800,0.20619438,97064.0,97063.0,0.004]
[1739394008298,0.20619438,97064.0,97062.0,0.2060436]
[1739394008892,0.20719438,97064.0,97062.0,0.2060436]
[1739394009300,0.20619438,97064.0,97062.0,0.2060436]
[1739394009494,0.20819438,97064.0,97062.0,0.2060436]
[1739394010000,0.20619438,97064.0,97062.0,0.2080436]
[1739394010497,0.00015448,97064.0,97062.0,0.2080436]
[1739394011700,0.00015448,97064.0,97062.0,0.2100436]
[1739394011905,0.00015448,97064.0,97063.0,0.206042]
[1739394013301,0.20619438,97064.0,97063.0,0.206042]
[1739394014995,0.20819438,97064.0,97063.0,0.206042]
[1739394015403,0.206059,97055.0,97054.0,0.033]
[1739394015594,0.2060717,97049.0,97048.0,0.2060719]
[1739394015799,0.2060717,97049.0,97021.0,0.0515325]
[1739394015800,0.3608,97056.0,97036.0,0.2060982]
[1739394016000,0.5668781,97046.0,97030.0,0.2061104]
[1739394016307,0.5668781,97046.0,97027.0,0.36881177]
[1739394017208,0.5668781,97046.0,97031.0,0.2061096]
[1739394017506,0.5668781,97046.0,97032.0,0.2061072]
[1739394018009,0.5668781,97046.0,97035.0,0.24586794]
[1739394018510,0.5668781,97046.0,97037.0,0.206096]
[1739394018707,0.2060781,97046.0,97044.0,0.2060823]
[1739394019401,0.2120781,97046.0,97045.0,0.00115448]
[1739394019600,0.006,97046.0,97045.0,0.00115448]
[1739394020107,0.006,97046.0,97045.0,0.20723468]
[1739394020906,0.18348635,97060.0,97045.0,0.00015448]
[1739394021102,0.2060646,97053.0,97051.0,0.2060674]
[1739394021311,0.3608,97058.0,97045.0,0.00315448]
[1739394021505,0.2060767,97047.0,97046.0,0.2060781]
[1739394023006,0.2060781,97046.0,97045.0,0.00015448]
[1739394024014,0.2061227,97025.0,97024.0,0.5669236]
[1739394024816,0.2061227,97025.0,97024.0,0.2061236]
[1739394025106,0.2061115,97031.0,97030.0,0.2061084]
[1739394025306,0.36095456,97034.0,97033.0,0.2061057]
[1739394027607,0.00015456,97034.0,97033.0,0.2061057]
[1739394028513,0.20625816,97034.0,97033.0,0.2091057]
[1739394029115,0.20625816,97034.0,97033.0,0.2061057]
[1739394029411,0.20625816,97034.0,97009.0,0.3608]
[1739394029412,0.00015456,97034.0,97009.0,0.3608]
[1739394029709,0.3608,97028.0,97022.0,0.2061279]
[1739394030017,0.2061269,97023.0,97022.0,0.2061279]
[1739394032118,0.2061269,97023.0,97022.0,0.2071279]
[1739394032620,0.2061269,97023.0,97022.0,0.001]
[1739394034108,0.2061269,97023.0,97002.0,0.33853492]
[1739394034109,0.0515328,97021.0,97002.0,0.30733492]
[1739394034321,0.7216,97023.0,96976.0,0.00052]
[1739394034322,0.2061992,96989.0,96976.0,0.00052]
[1739394034614,0.2061992,96989.0,96965.0,0.33797507]
[1739394034615,0.2062481,96966.0,96965.0,0.33797507]
[1739394034814,0.2062566,96962.0,96961.0,0.43082556]
[1739394035216,0.2062566,96962.0,96961.0,0.3611151]
[1739394035412,0.2062566,96962.0,96961.0,0.20206749]
[1739394037819,0.2132566,96962.0,96961.0,0.20206749]
[1739394039415,0.007,96962.0,96961.0,0.20206749]
[1739394039619,0.007,96962.0,96960.0,0.0629]
[1739394040008,0.18381833,96970.0,96969.0,0.2062417]
[1739394040213,0.2062128,96983.0,96969.0,0.5670417]
[1739394040515,0.2062128,96983.0,96977.0,0.3608]
[1739394040820,0.2062128,96983.0,96977.0,1.8608]
[1739394041222,0.2061939,96992.0,96982.0,0.2062131]
[1739394041424,0.00015466,96990.0,96985.0,0.3608]
[1739394041917,0.2062052,96987.0,96984.0,0.0301]
[1739394042420,0.2062201,96980.0,96978.0,0.00015466]
[1739394043011,0.2062201,96980.0,96972.0,0.3608]
[1739394043413,0.2062201,96980.0,96973.0,0.2062325]
[1739394043919,0.00015466,96990.0,96989.0,0.2061992]
[1739394044116,0.00015466,96990.0,96989.0,0.5669992]
[1739394044320,0.00015466,96990.0,96989.0,0.3503462]
[1739394044924,0.00015466,96990.0,96982.0,0.3608]
[1739394045123,0.00015466,96990.0,96989.0,0.001]
[1739394045416,0.57801264,96990.0,96989.0,0.001]
[1739394045619,0.56715176,96990.0,96989.0,0.001]
[1739394045920,0.2062319,96974.0,96972.0,0.20723362]
[1739394047323,0.2092319,96974.0,96972.0,0.20723362]
[1739394047719,0.003,96974.0,96972.0,0.41346692]
[1739394047922,0.2062183,96981.0,96977.0,0.2062241]
[1739394048227,0.2062108,96984.0,96972.0,0.20723362]
[1739394048615,0.2062108,96984.0,96980.0,0.5670177]
[1739394048816,0.2062108,96984.0,96981.0,0.2062155]
[1739394049012,0.00015466,96990.0,96980.0,0.3608]
[1739394049217,0.00015466,96990.0,96989.0,0.5669992]
[1739394049527,0.3608,97001.0,96989.0,0.3608]
[1739394049728,0.2061807,96998.0,96997.0,0.2061805]
[1739394050021,0.3608,97001.0,96990.0,0.0629]
[1739394050022,0.206195,96991.0,96990.0,0.0629]
[1739394050616,0.206195,96991.0,96990.0,0.0306]
[1739394051329,0.206195,96991.0,96990.0,0.0336]
[1739394051718,0.206195,96991.0,96990.0,0.003]
[1739394053014,0.2062141,96982.0,96981.0,0.00015466]
[1739394054227,0.2102141,96982.0,96981.0,0.00015466]
[1739394054823,0.003,96982.0,96981.0,0.20637086]
[1739394055223,0.05191278,96991.0,96990.0,0.2061971]
[1739394055527,0.00154723,97009.0,96999.0,0.2061779]
[1739394055726,0.00154723,97009.0,96999.0,0.5669779]
[1739394056323,0.00154723,97009.0,96999.0,0.3608]
[1739394056527,0.00154723,97009.0,97008.0,0.5669588]
[1739394056834,0.566915,97029.0,97017.0,0.2061379]
[1739394057029,0.566915,97029.0,97008.0,0.3608]
[1739394057030,0.566915,97029.0,97023.0,0.2061254]
[1739394057235,0.206115,97029.0,97024.0,0.2061227]
[1739394057438,0.0332,97037.0,97019.0,0.3608]
[1739394057729,0.07899466,97036.0,97025.0,0.2061214]
[1739394058035,0.00015466,97036.0,97026.0,0.2061193]
[1739394058220,0.007,97029.0,97027.0,0.2061172]
[1739394058820,0.007,97029.0,97027.0,0.5669172]
[1739394059022,6e-08,97036.0,97027.0,0.6608]
[1739394059225,0.20775035,97053.0,97035.0,0.3608]
[1739394059538,0.27679531,97056.0,97055.0,0.206059]
[1739394059829,0.24378008,97071.0,97059.0,0.2060492]
[1739394060027,0.24378008,97071.0,97060.0,0.54428635]
[1739394060229,0.24378008,97071.0,97061.0,0.2060462]
[1739394060528,0.24378008,97071.0,97068.0,0.3608]
[1739394061029,0.24978008,97071.0,97060.0,0.54428635]
[1739394061235,0.24978008,97071.0,97060.0,0.3608]
[1739394061533,0.45580568,97071.0,97060.0,0.3608]
[1739394061733,0.45580568,97071.0,97060.0,0.54428635]
[1739394061935,0.3608,97065.0,97059.0,0.001]
[1739394062427,0.3608,97065.0,97056.0,0.00015458]
[1739394062728,0.3608,97065.0,97034.0,0.2061035]